fUSD/lending_fUSD_20241208
["ID","MTS","AMOUNT","RATE_DAILY","PERIOD"]
[344650644,1733673055882,-263.56,0.00022896,2]
[344650645,1733673055891,-500.0,0.00022896,2]
[344650646,1733673055900,-500.0,0.00022896,2]
[344650647,1733673055909,-500.0,0.00022896,2]
[344650648,1733673055918,-500.0,0.00022896,2]
[344650649,1733673055928,-500.0,0.00022896,2]
[344650650,1733673055937,-500.0,0.00022896,2]
[344650651,1733673055948,-500.0,0.00022896,2]
[344650652,1733673055957,-500.0,0.00022896,2]
[344650653,1733673055966,-500.0,0.00022896,2]
[344650654,1733673055976,-500.0,0.00022896,2]
[344650655,1733673055987,-500.0,0.00022896,2]
[344650656,1733673055998,-484.91313111,0.00022896,2]
[344650657,1733673056013,-170.78,0.00022896,2]
[344650658,1733673056023,-1266.88,0.00022896,2]
[344650659,1733673056033,-500.0,0.00022896,2]
[344650660,1733673056044,-618.7011743,0.00022896,2]
[344650661,1733673056053,-500.0,0.00022896,2]
[344650662,1733673056063,-500.0,0.00022896,2]
[344650663,1733673056074,-500.0,0.00022896,2]
[344650664,1733673056087,-500.0,0.00022896,2]
[344650665,1733673056096,-500.0,0.00022896,2]
[344650666,1733673056106,-500.0,0.00022896,2]
[344650667,1733673056115,-500.0,0.00022896,2]
[344650668,1733673056124,-500.0,0.00022896,2]
[344650669,1733673056133,-500.0,0.00022896,2]
[344650670,1733673056142,-500.0,0.00022896,2]
[344650671,1733673056151,-500.0,0.00022896,2]
[344650672,1733673056161,-372.44,0.00022896,2]
[344650673,1733673056170,-500.0,0.00022896,2]
[344650674,1733673056179,-500.0,0.00022896,2]
[344650675,1733673056188,-500.0,0.00022896,2]
[344650676,1733673056197,-500.0,0.00022896,2]
[344650677,1733673056206,-500.0,0.00022896,2]
[344650678,1733673056214,-500.0,0.00022896,2]
[344650679,1733673056223,-500.0,0.00022896,2]
[344650680,1733673056232,-500.0,0.00022896,2]
[344650681,1733673056242,-500.0,0.00022896,2]
[344650682,1733673056252,-500.0,0.00022896,2]
[344650683,1733673056261,-500.0,0.00022896,2]
[344650684,1733673056271,-500.0,0.00022896,2]
[344650685,1733673056280,-500.0,0.00022896,2]
[344650686,1733673056289,-500.0,0.00022896,2]
[344650687,1733673056301,-391.02,0.00022896,2]
[344650688,1733673056310,-500.0,0.00022896,2]
[344650689,1733673056319,-500.0,0.00022896,2]
[344650690,1733673056329,-500.0,0.00022896,2]
[344650691,1733673056338,-500.0,0.00022896,2]
[344650692,1733673056347,-500.0,0.00022896,2]
[344650693,1733673056356,-500.0,0.00022896,2]
[344650694,1733673056365,-1105.95,0.00022896,2]
[344650695,1733673056374,-500.0,0.00022896,2]
[344650696,1733673056383,-500.0,0.00022896,2]
[344650697,1733673056392,-500.0,0.00022896,2]
[344650698,1733673056402,-281.62,0.00022896,2]
[344650699,1733673056411,-1730.67,0.00022896,2]
[344650700,1733673056420,-200.0,0.00022897,2]
[344650701,1733673056429,-558.47,0.00022897,2]
[344650702,1733673056439,-776.83,0.00022897,2]
[344650703,1733673056448,-822.57,0.00022897,2]
[344650704,1733673056457,-500.0,0.00022897,2]
[344650705,1733673056466,-581.79671367,0.00022897,2]
[344650706,1733673056475,-688.4,0.00022897,2]
[344650707,1733673056484,-1120.72,0.00022897,2]
[344650708,1733673056494,-500.0,0.00022897,2]
[344650709,1733673056508,-545.26,0.00022897,2]
[344650710,1733673056517,-851.03,0.00022897,2]
[344650711,1733673056527,-500.0,0.00022897,2]
[344650712,1733673056536,-997.84,0.00022897,2]
[344650713,1733673056545,-665.4,0.00022897,2]
[344650714,1733673056555,-1459.54,0.00022897,2]
[344650715,1733673056564,-183.82,0.00022897,2]
[344650716,1733673056573,-294.06,0.00022897,2]
[344650717,1733673056583,-2077.92,0.00022897,2]
[344650718,1733673056592,-500.0,0.00022897,2]
[344650719,1733673056601,-500.0,0.00022897,2]
[344650720,1733673056611,-500.0,0.00022897,2]
[344650721,1733673056621,-500.0,0.00022897,2]
[344650722,1733673056630,-737.99,0.00022897,2]
[344650723,1733673056639,-558.8933811,0.00022897,2]
[344650724,1733673056648,-714.25,0.00022897,2]
[344650725,1733673056657,-500.0,0.00022897,2]
[344650726,1733673056666,-500.0,0.00022897,2]
[344650727,1733673056676,-990.18,0.00022897,2]
[344650728,1733673056685,-689.05,0.00022897,2]
[344650729,1733673056695,-1804.89,0.00022897,2]
[344650730,1733673056706,-520.69,0.00022897,2]
[344650731,1733673056716,-500.0,0.00022897,2]
[344650732,1733673056725,-500.0,0.00022897,2]
[344650733,1733673056735,-500.0,0.00022897,2]
[344650734,1733673056746,-591.57,0.00022897,2]
[344650735,1733673056756,-500.0,0.00022897,2]
[344650736,1733673056766,-639.03,0.00022897,2]
[344650737,1733673056776,-500.0,0.00022897,2]
[344650738,1733673056786,-2837.0,0.00022897,2]
[344650739,1733673056796,-500.0,0.00022897,2]
[344650740,1733673056806,-500.0,0.00022897,2]
[344650741,1733673056815,-500.0,0.00022897,2]
[344650742,1733673056824,-527.10789361,0.00022897,2]
[344650743,1733673056834,-337.25,0.00022897,2]
[344650744,1733673056844,-500.0,0.00022897,2]
[344650745,1733673056854,-500.0,0.00022897,2]
[344650746,1733673056863,-500.0,0.00022897,2]
[344650747,1733673056872,-500.0,0.00022897,2]
[344650748,1733673056881,-500.0,0.00022897,2]
[344650749,1733673056891,-500.0,0.00022897,2]
[344650750,1733673056900,-267.78,0.00022897,2]
[344650751,1733673056909,-500.0,0.00022897,2]
[344650752,1733673056919,-500.0,0.00022897,2]
[344650753,1733673056928,-365.88,0.00022897,2]
[344650754,1733673056938,-500.0,0.00022897,2]
[344650755,1733673056947,-500.0,0.00022897,2]
[344650756,1733673056956,-500.0,0.00022897,2]
[344650757,1733673056965,-500.0,0.00022897,2]
[344650758,1733673056975,-500.0,0.00022897,2]
[344650759,1733673056985,-467.85,0.00022897,2]
[344650760,1733673056994,-500.0,0.00022897,2]
[344650761,1733673057007,-500.0,0.00022897,2]
[344650762,1733673057017,-200.0,0.00022897,2]
[344650763,1733673057026,-10104.75314233,0.00022897,2]
[344650764,1733673057036,-558.47,0.00022898,2]
[344650765,1733673057046,-558.47,0.00022898,2]
[344650766,1733673057056,-558.47,0.00022898,2]
[344650767,1733673057065,-558.47,0.00022898,2]
[344650768,1733673057076,-558.60181308,0.00022898,2]
[344650769,1733673057085,-776.83,0.00022898,2]
[344650770,1733673057095,-776.83,0.00022898,2]
[344650771,1733673057104,-776.83,0.00022898,2]
[344650772,1733673057113,-776.83,0.00022898,2]
[344650773,1733673057123,-776.88227362,0.00022898,2]
[344650774,1733673057132,-822.57,0.00022898,2]
[344650775,1733673057142,-822.57,0.00022898,2]
[344650776,1733673057152,-822.57,0.00022898,2]
[344650777,1733673057163,-822.57,0.00022898,2]
[344650778,1733673057173,-822.6345137,0.00022898,2]
[344650779,1733673057182,-366.59744174,0.00022898,2]
[344650780,1733673057191,-617.19,0.00022898,2]
[344650781,1733673057201,-481.5,0.00022898,2]
[344650782,1733673057210,-688.4,0.00022898,2]
[344650783,1733673057219,-688.4,0.00022898,2]
[344650784,1733673057229,-688.4,0.00022898,2]
[344650785,1733673057238,-688.4,0.00022898,2]
[344650786,1733673057246,-688.5581582,0.00022898,2]
[344650787,1733673057256,-234.62,0.00022898,2]
[344650788,1733673057265,-1120.72,0.00022898,2]
[344650789,1733673057274,-1120.72,0.00022898,2]
[344650790,1733673057283,-1120.72,0.00022898,2]
[344650791,1733673057292,-1120.72,0.00022898,2]
[344650792,1733673057301,-1120.8754,0.00022898,2]
[344650793,1733673057310,-500.0,0.00022898,2]
[344650794,1733673057319,-489.46,0.00022898,2]
[344650795,1733673057329,-500.0,0.00022898,2]
[344650796,1733673057338,-500.0,0.00022898,2]
[344650797,1733673057347,-407.83155032,0.00022898,2]
[344650798,1733673057356,-494.58,0.00022898,2]
[344650799,1733673057365,-545.26,0.00022898,2]
[344650800,1733673057374,-545.26,0.00022898,2]
[344650801,1733673057383,-545.26,0.00022898,2]
[344650802,1733673057392,-545.26,0.00022898,2]
[344650803,1733673057401,-545.38040369,0.00022898,2]
[344650804,1733673057411,-851.03,0.00022898,2]
[344650805,1733673057420,-851.03,0.00022898,2]
[344650806,1733673057429,-851.03,0.00022898,2]
[344650807,1733673057438,-851.03,0.00022898,2]
[344650808,1733673057447,-851.23571351,0.00022898,2]
[344650809,1733673057457,-636.48,0.00022898,2]
[344650810,1733673057467,-500.0,0.00022898,2]
[344650811,1733673057477,-500.0,0.00022898,2]
[344650812,1733673057582,-500.0,0.00022898,2]
[344650813,1733673057591,-500.0,0.00022898,2]
[344650814,1733673057601,-500.0,0.00022898,2]
[344650815,1733673057610,-500.0,0.00022898,2]
[344650816,1733673057619,-218.28272099,0.00022898,2]
[344650817,1733673057628,-500.0,0.00022898,2]
[344650818,1733673057637,-340.57,0.00022898,2]
[344650819,1733673057646,-997.84,0.00022898,2]
[344650820,1733673057657,-997.84,0.00022898,2]
[344650821,1733673057666,-997.84,0.00022898,2]
[344650822,1733673057675,-997.84,0.00022898,2]
[344650823,1733673057685,-998.0313216,0.00022898,2]
[344650824,1733673057694,-500.0,0.00022898,2]
[344650825,1733673057704,-562.39,0.00022898,2]
[344650826,1733673057713,-500.0,0.00022898,2]
[344650827,1733673057723,-470.44,0.00022898,2]
[344650828,1733673057731,-500.0,0.00022898,2]
[344650829,1733673057740,-491.05,0.00022898,2]
[344650830,1733673057751,-500.0,0.00022898,2]
[344650831,1733673057760,-309.7,0.00022898,2]
[344650832,1733673057769,-500.0,0.00022898,2]
[344650833,1733673057778,-172.63,0.00022898,2]
[344650834,1733673057787,-500.0,0.00022898,2]
[344650835,1733673057797,-547.36,0.00022898,2]
[344650836,1733673057806,-538.65,0.00022898,2]
[344650837,1733673057815,-431.76,0.00022898,2]
[344650838,1733673057824,-500.0,0.00022898,2]
[344650839,1733673057834,-500.0,0.00022898,2]
[344650840,1733673057844,-500.0,0.00022898,2]
[344650841,1733673057853,-156.34,0.00022898,2]
[344650842,1733673057863,-500.0,0.00022898,2]
[344650843,1733673057872,-348.97,0.00022898,2]
[344650844,1733673057882,-500.0,0.00022898,2]
[344650845,1733673057891,-494.56,0.00022898,2]
[344650846,1733673057900,-500.0,0.00022898,2]
[344650847,1733673057911,-500.0,0.00022898,2]
[344650848,1733673057920,-305.16,0.00022898,2]
[344650849,1733673057929,-500.0,0.00022898,2]
[344650850,1733673057939,-500.0,0.00022898,2]
[344650851,1733673057948,-500.0,0.00022898,2]
[344650852,1733673057958,-544.84,0.00022898,2]
[344650853,1733673057967,-665.4,0.00022898,2]
[344650854,1733673057976,-665.4,0.00022898,2]
[344650855,1733673057985,-665.4,0.00022898,2]
[344650856,1733673057995,-665.4,0.00022898,2]
[344650857,1733673058009,-665.52,0.00022898,2]
[344650858,1733673058018,-500.0,0.00022898,2]
[344650859,1733673058029,-535.78,0.00022898,2]
[344650860,1733673058039,-500.0,0.00022898,2]
[344650861,1733673058048,-500.0,0.00022898,2]
[344650862,1733673058057,-593.56,0.00022898,2]
[344650863,1733673058067,-824.4,0.00022898,2]
[344650864,1733673058077,-824.4,0.00022898,2]
[344650865,1733673058086,-400.86,0.00022898,2]
[344650866,1733673058096,-1459.54,0.00022898,2]
[344650867,1733673058105,-2077.92,0.00022898,2]
[344650868,1733673058115,-500.0,0.00022898,2]
[344650869,1733673058124,-500.0,0.00022898,2]
[344650870,1733673058134,-3000.0,0.00022898,2]
[344650871,1733673058143,-500.0,0.00022898,2]
[344650872,1733673058153,-334.21,0.00022898,2]
[344650873,1733673058162,-737.99,0.00022898,2]
[344650874,1733673058172,-714.25,0.00022898,2]
[344650875,1733673058182,-500.0,0.00022898,2]
[344650876,1733673058191,-376.02,0.00022898,2]
[344650877,1733673058200,-500.0,0.00022898,2]
[344650878,1733673058210,-500.0,0.00022898,2]
[344650879,1733673058220,-500.0,0.00022898,2]
[344650880,1733673058230,-990.18,0.00022898,2]
[344650881,1733673058240,-500.0,0.00022898,2]
[344650882,1733673058253,-611.17,0.00022898,2]
[344650883,1733673058261,-689.05,0.00022898,2]
[344650884,1733673058270,-1804.89,0.00022898,2]
[344650885,1733673058280,-500.0,0.00022898,2]
[344650886,1733673058289,-462.28,0.00022898,2]
[344650887,1733673058297,-520.69,0.00022898,2]
[344650888,1733673058309,-500.0,0.00022898,2]
[344650889,1733673058318,-500.0,0.00022898,2]
[344650890,1733673058327,-397.15,0.00022898,2]
[344650891,1733673058336,-381.0,0.00022898,2]
[344650892,1733673058345,-500.0,0.00022898,2]
[344650893,1733673058354,-500.0,0.00022898,2]
[344650894,1733673058363,-500.0,0.00022898,2]
[344650895,1733673058373,-500.0,0.00022898,2]
[344650896,1733673058382,-473.2550524,0.00022898,2]
[344650897,1733673058392,-591.57,0.00022898,2]
[344650898,1733673058401,-500.0,0.00022898,2]
[344650899,1733673058412,-500.0,0.00022898,2]
[344650900,1733673058421,-2837.0,0.00022898,2]
[344650901,1733673058432,-1266.88,0.00022898,2]
[344650902,1733673058443,-500.0,0.00022898,2]
[344650903,1733673058452,-500.0,0.00022898,2]
[344650904,1733673058464,-500.0,0.00022898,2]
[344650905,1733673058475,-500.0,0.00022898,2]
[344650906,1733673058484,-500.0,0.00022898,2]
[344650907,1733673058493,-500.0,0.00022898,2]
[344650908,1733673058504,-500.0,0.00022898,2]
[344650909,1733673058513,-500.0,0.00022898,2]
[344650910,1733673058523,-500.0,0.00022898,2]
[344650911,1733673058532,-500.0,0.00022898,2]
[344650912,1733673058543,-500.0,0.00022898,2]
[344650913,1733673058553,-500.0,0.00022898,2]
[344650914,1733673058562,-500.0,0.00022898,2]
[344650915,1733673058572,-500.0,0.00022898,2]
[344650916,1733673058582,-500.0,0.00022898,2]
[344650917,1733673058591,-342.76,0.00022898,2]
[344650918,1733673058600,-500.0,0.00022898,2]
[344650919,1733673058609,-500.0,0.00022898,2]
[344650920,1733673058618,-500.0,0.00022898,2]
[344650921,1733673058626,-500.0,0.00022898,2]
[344650922,1733673058635,-511.68094695,0.00022898,2]
[344650923,1733673058644,-643.77,0.00022898,2]
[344650924,1733673058653,-500.0,0.00022898,2]
[344650925,1733673058661,-443.05,0.00022898,2]
[344650926,1733673058671,-500.0,0.00022898,2]
[344650927,1733673058681,-432.79,0.00022898,2]
[344650928,1733673058690,-500.0,0.00022898,2]
[344650929,1733673058698,-228.1,0.00022898,2]
[344650930,1733673058707,-166.50115746,0.00022898,2]
[344650931,1733673058717,-1105.95,0.00022898,2]
[344650932,1733673058726,-500.0,0.00022898,2]
[344650933,1733673058736,-309.37368404,0.00022898,2]
[344650934,1733673058746,-500.0,0.00022898,2]
[344650935,1733673058758,-500.0,0.00022898,2]
[344650936,1733673058768,-500.0,0.00022898,2]
[344650937,1733673058778,-1730.67,0.00022898,2]
[344650938,1733673058787,-937.79415955,0.00022898,2]
[344650939,1733673058797,-21920.0,0.00022898,5]
[344650940,1733673058806,-200.0,0.00022898,2]
[344650941,1733673058815,-200.0,0.00022898,2]
[344650942,1733673058824,-200.0,0.00022899,2]
[344650943,1733673058834,-537.0,0.00022899,2]
[344650944,1733673058843,-11372.85958772,0.00022899,2]
[344650945,1733673058852,-222.54294997,0.00022899,2]
[344650946,1733673058861,-1000.0,0.00022899,2]
[344650947,1733673058871,-695.63,0.00022899,2]
[344650948,1733673058880,-500.0,0.00022899,2]
[344650949,1733673058889,-264.71,0.00022899,2]
[344650950,1733673058899,-462.38,0.00022899,2]
[344650951,1733673058908,-427.31,0.00022899,2]
[344650952,1733673058918,-392.3,0.00022899,2]
[344650953,1733673058928,-520.04,0.00022899,2]
[344650954,1733673058938,-824.4,0.00022899,2]
[344650955,1733673058948,-824.4,0.00022899,2]
[344650956,1733673058957,-824.4,0.00022899,2]
[344650957,1733673058967,-824.4,0.00022899,2]
[344650958,1733673058976,-824.4,0.00022899,2]
[344650959,1733673058985,-824.4,0.00022899,2]
[344650960,1733673058994,-824.4,0.00022899,2]
[344650961,1733673059009,-824.4,0.00022899,2]
[344650962,1733673059018,-824.4,0.00022899,2]
[344650963,1733673059027,-824.4,0.00022899,2]
[344650964,1733673059037,-824.4,0.00022899,2]
[344650965,1733673059046,-824.4,0.00022899,2]
[344650966,1733673059055,-824.4,0.00022899,2]
[344650967,1733673059064,-1459.54,0.00022899,2]
[344650968,1733673059074,-1459.54,0.00022899,2]
[344650969,1733673059083,-1459.54,0.00022899,2]
[344650970,1733673059092,-1459.54,0.00022899,2]
[344650971,1733673059101,-1459.54,0.00022899,2]
[344650972,1733673059110,-1459.54,0.00022899,2]
[344650973,1733673059119,-1459.54,0.00022899,2]
[344650974,1733673059128,-1459.54,0.00022899,2]
[344650975,1733673059137,-1459.54,0.00022899,2]
[344650976,1733673059145,-1459.54,0.00022899,2]
[344650977,1733673059155,-1459.54,0.00022899,2]
[344650978,1733673059164,-1459.54,0.00022899,2]
[344650979,1733673059173,-1459.54,0.00022899,2]
[344650980,1733673059182,-2077.92,0.00022899,2]
[344650981,1733673059191,-2077.92,0.00022899,2]
[344650982,1733673059200,-2077.92,0.00022899,2]
[344650983,1733673059209,-2077.92,0.00022899,2]
[344650984,1733673059218,-2077.92,0.00022899,2]
[344650985,1733673059227,-2077.92,0.00022899,2]
[344650986,1733673059236,-2077.92,0.00022899,2]
[344650987,1733673059245,-2077.92,0.00022899,2]
[344650988,1733673059254,-2077.92,0.00022899,2]
[344650989,1733673059263,-2077.92,0.00022899,2]
[344650990,1733673059272,-2077.92,0.00022899,2]
[344650991,1733673059281,-2077.92,0.00022899,2]
[344650992,1733673059290,-2077.92,0.00022899,2]
[344650993,1733673059300,-440.48,0.00022899,2]
[344650994,1733673059309,-178.88,0.00022899,2]
[344650995,1733673059411,-500.0,0.00022899,2]
[344650996,1733673059421,-459.52,0.00022899,2]
[344650997,1733673059431,-737.99,0.00022899,2]
[344650998,1733673059440,-737.99,0.00022899,2]
[344650999,1733673059449,-737.99,0.00022899,2]
[344651000,1733673059458,-737.99,0.00022899,2]
[344651001,1733673059467,-737.99,0.00022899,2]
[344651002,1733673059476,-737.99,0.00022899,2]
[344651003,1733673059485,-737.99,0.00022899,2]
[344651004,1733673059494,-737.99,0.00022899,2]
[344651005,1733673059503,-737.99,0.00022899,2]
[344651006,1733673059513,-714.25,0.00022899,2]
[344651007,1733673059522,-737.99,0.00022899,2]
[344651008,1733673059531,-714.25,0.00022899,2]
[344651009,1733673059540,-737.99,0.00022899,2]
[344651010,1733673059550,-714.25,0.00022899,2]
[344651011,1733673059559,-737.99,0.00022899,2]
[344651012,1733673059568,-714.25,0.00022899,2]
[344651013,1733673059577,-737.99,0.00022899,2]
[344651014,1733673059586,-714.25,0.00022899,2]
[344651015,1733673059595,-500.0,0.00022899,2]
[344651016,1733673059604,-714.25,0.00022899,2]
[344651017,1733673059613,-500.0,0.00022899,2]
[344651018,1733673059622,-500.0,0.00022899,2]
[344651019,1733673059631,-714.25,0.00022899,2]
[344651020,1733673059640,-500.0,0.00022899,2]
[344651021,1733673059649,-714.25,0.00022899,2]
[344651022,1733673059659,-714.25,0.00022899,2]
[344651023,1733673059668,-714.25,0.00022899,2]
[344651024,1733673059678,-500.0,0.00022899,2]
[344651025,1733673059687,-714.25,0.00022899,2]
[344651026,1733673059696,-500.0,0.00022899,2]
[344651027,1733673059705,-714.25,0.00022899,2]
[344651028,1733673059714,-500.0,0.00022899,2]
[344651029,1733673059724,-714.25,0.00022899,2]
[344651030,1733673059733,-500.0,0.00022899,2]
[344651031,1733673059742,-500.0,0.00022899,2]
[344651032,1733673059751,-500.0,0.00022899,2]
[344651033,1733673059760,-500.0,0.00022899,2]
[344651034,1733673059770,-622.05122551,0.00022899,2]
[344651035,1733673059779,-500.0,0.00022899,2]
[344651036,1733673059788,-500.0,0.00022899,2]
[344651037,1733673059797,-500.0,0.00022899,2]
[344651038,1733673059807,-500.0,0.00022899,2]
[344651039,1733673059816,-500.0,0.00022899,2]
[344651040,1733673059825,-500.0,0.00022899,2]
[344651041,1733673059834,-500.0,0.00022899,2]
[344651042,1733673059843,-500.0,0.00022899,2]
[344651043,1733673059852,-500.0,0.00022899,2]
[344651044,1733673059861,-567.30336187,0.00022899,2]
[344651045,1733673059870,-500.0,0.00022899,2]
[344651046,1733673059880,-500.0,0.00022899,2]
[344651047,1733673059889,-500.0,0.00022899,2]
[344651048,1733673059898,-500.0,0.00022899,2]
[344651049,1733673059908,-990.18,0.00022899,2]
[344651050,1733673059917,-990.18,0.00022899,2]
[344651051,1733673059927,-990.18,0.00022899,2]
[344651052,1733673059936,-990.18,0.00022899,2]
[344651053,1733673059946,-990.18,0.00022899,2]
[344651054,1733673059955,-990.18,0.00022899,2]
[344651055,1733673059964,-990.18,0.00022899,2]
[344651056,1733673059974,-990.18,0.00022899,2]
[344651057,1733673059983,-990.18,0.00022899,2]
[344651058,1733673059992,-990.18,0.00022899,2]
[344651059,1733673060006,-990.18,0.00022899,2]
[344651060,1733673060016,-990.18,0.00022899,2]
[344651061,1733673060025,-990.18,0.00022899,2]
[344651062,1733673060035,-689.05,0.00022899,2]
[344651063,1733673060046,-689.05,0.00022899,2]
[344651064,1733673060055,-689.05,0.00022899,2]
[344651065,1733673060065,-689.05,0.00022899,2]
[344651066,1733673060076,-689.05,0.00022899,2]
[344651067,1733673060087,-1804.89,0.00022899,2]
[344651068,1733673060097,-689.05,0.00022899,2]
[344651069,1733673060107,-1804.89,0.00022899,2]
[344651070,1733673060116,-689.05,0.00022899,2]
[344651071,1733673060126,-1804.89,0.00022899,2]
[344651072,1733673060136,-689.05,0.00022899,2]
[344651073,1733673060147,-1804.89,0.00022899,2]
[344651074,1733673060156,-689.05,0.00022899,2]
[344651075,1733673060165,-1804.89,0.00022899,2]
[344651076,1733673060175,-689.05,0.00022899,2]
[344651077,1733673060184,-1804.89,0.00022899,2]
[344651078,1733673060194,-689.05,0.00022899,2]
[344651079,1733673060203,-1804.89,0.00022899,2]
[344651080,1733673060212,-689.05,0.00022899,2]
[344651081,1733673060222,-689.05,0.00022899,2]
[344651082,1733673060232,-1804.89,0.00022899,2]
[344651083,1733673060242,-1804.89,0.00022899,2]
[344651084,1733673060251,-1804.89,0.00022899,2]
[344651085,1733673060263,-1804.89,0.00022899,2]
[344651086,1733673060273,-1804.89,0.00022899,2]
[344651087,1733673060282,-1804.89,0.00022899,2]
[344651088,1733673060292,-520.69,0.00022899,2]
[344651089,1733673060302,-520.69,0.00022899,2]
[344651090,1733673060311,-520.69,0.00022899,2]
[344651091,1733673060320,-520.69,0.00022899,2]
[344651092,1733673060329,-520.69,0.00022899,2]
[344651093,1733673060338,-520.69,0.00022899,2]
[344651094,1733673060348,-520.69,0.00022899,2]
[344651095,1733673060357,-520.69,0.00022899,2]
[344651096,1733673060366,-520.69,0.00022899,2]
[344651097,1733673060375,-500.0,0.00022899,2]
[344651098,1733673060384,-520.69,0.00022899,2]
[344651099,1733673060393,-500.0,0.00022899,2]
[344651100,1733673060402,-520.69,0.00022899,2]
[344651101,1733673060411,-500.0,0.00022899,2]
[344651102,1733673060421,-520.69,0.00022899,2]
[344651103,1733673060430,-500.0,0.00022899,2]
[344651104,1733673060439,-520.69,0.00022899,2]
[344651105,1733673060449,-500.0,0.00022899,2]
[344651106,1733673060458,-500.0,0.00022899,2]
[344651107,1733673060467,-500.0,0.00022899,2]
[344651108,1733673060476,-500.0,0.00022899,2]
[344651109,1733673060485,-500.0,0.00022899,2]
[344651110,1733673060495,-500.0,0.00022899,2]
[344651111,1733673060507,-500.0,0.00022899,2]
[344651112,1733673060518,-500.0,0.00022899,2]
[344651113,1733673060527,-500.0,0.00022899,2]
[344651114,1733673060536,-500.0,0.00022899,2]
[344651115,1733673060546,-500.0,0.00022899,2]
[344651116,1733673060555,-500.0,0.00022899,2]
[344651117,1733673060564,-500.0,0.00022899,2]
[344651118,1733673060574,-500.0,0.00022899,2]
[344651119,1733673060583,-500.0,0.00022899,2]
[344651120,1733673060593,-500.0,0.00022899,2]
[344651121,1733673060602,-544.15,0.00022899,2]
[344651122,1733673060612,-591.57,0.00022899,2]
[344651123,1733673060621,-591.57,0.00022899,2]
[344651124,1733673060630,-591.57,0.00022899,2]
[344651125,1733673060639,-591.57,0.00022899,2]
[344651126,1733673060648,-467.63,0.00022899,2]
[344651127,1733673060657,-591.57,0.00022899,2]
[344651128,1733673060666,-591.57,0.00022899,2]
[344651129,1733673060675,-591.57,0.00022899,2]
[344651130,1733673060684,-591.57,0.00022899,2]
[344651131,1733673060693,-591.57,0.00022899,2]
[344651132,1733673060703,-591.57,0.00022899,2]
[344651133,1733673060712,-591.57,0.00022899,2]
[344651134,1733673060721,-591.57,0.00022899,2]
[344651135,1733673060730,-591.57,0.00022899,2]
[344651136,1733673060739,-500.0,0.00022899,2]
[344651137,1733673060749,-500.0,0.00022899,2]
[344651138,1733673060761,-500.0,0.00022899,2]
[344651139,1733673060770,-500.0,0.00022899,2]
[344651140,1733673060779,-500.0,0.00022899,2]
[344651141,1733673060789,-500.0,0.00022899,2]
[344651142,1733673060798,-2837.0,0.00022899,2]
[344651143,1733673060807,-500.0,0.00022899,2]